Cogmind - Beta 11 X8 @@@ ROGUE MODE // 2021.11.04 @ 16:44:02 Player: Luna Result: Destroyed by Y-45 Defender with Heavy Assault Rifle Performance ------------- Evolutions (2) 1000 Regions Visited (8) 1600 Robots Destroyed (61) 305 Value Destroyed (1637) 1637 Prototype IDs (31) 620 Alien Tech Used (0) 0 Bonus (343) 343 TOTAL SCORE: 5505 Bonus ------- High Alert Combat Kills 8 Follower Combat Kills 35 Aligned with FarCom 300 Cogmind --------- Core Integrity 0/550 Matter 290/300 Energy 140/140 System Corruption 0% Temperature Cool (9) Movement Rolling (116) Ox2 Location -8/Storage Parts ------- > --- POWER (1) -------- Light Deuterium Engine > --- PROPULSION (3) --- Wheel Wheel Compact Wheel > --- UTILITY (5) ------ Improved Heat Sink Medium Storage Unit Huge Storage Unit Light Armor Plating Light Armor Plating > --- WEAPON (2) ------- Particle Cannon Katana > --- INVENTORY (25) --- Improved Flight Unit Improved Flight Unit Improved Flight Unit Improved Flight Unit Improved Flight Unit Small Storage Unit Structural Scanner Improved Sensor Array Signal Interpreter Hacking Suite Hacking Suite Supersonic Drone Bay (1/1) Improved EM Pulse Cannon Mini Grenade Launcher Missile Launcher Great Maul Peak State ------------ > --- POWER ------------ Cooled Ion Engine > --- PROPULSION ------- Light Treads Light Treads > --- UTILITY ---------- Improved Heat Sink Improved Heat Sink Huge Storage Unit Advanced Targeting Computer Improved Light Armor Plating > --- WEAPON ----------- Advanced Beam Rifle Advanced Beam Rifle > --- INVENTORY -------- Light Deuterium Engine Light Deuterium Engine Compact Wheel Improved Flight Unit Improved Flight Unit Improved Flight Unit Improved Flight Unit Improved Flight Unit Small Storage Unit Medium Storage Unit Structural Scanner Improved Sensor Array Signal Interpreter Light Armor Plating Light Armor Plating Light Armor Plating Light Armor Plating Hacking Suite Hacking Suite Supersonic Drone Bay Improved EM Pulse Cannon Particle Cannon Mini Grenade Launcher Missile Launcher Great Maul [Rating: 32] Favorites ----------- Power Light Deuterium Engine Engine Light Deuterium Engine Propulsion Wheel Treads Light Treads Leg Aluminum Leg Wheel Wheel Utility Huge Storage Unit Device Structural Scanner Storage Huge Storage Unit Processor Advanced Targeting Computer Protection Light Armor Plating Weapon Beamcaster Energy Gun Beamcaster Energy Cannon EM Pulse Cannon Ballistic Gun Assault Rifle Ballistic Cannon Light Cannon Launcher Mini Grenade Launcher Impact Weapon Great Maul Slashing Weapon Katana Build | -11 -10 -10 -9 -9 -9 -8 -8 -8 ------- Run | Scr Mat Min Mat Min Exi Min Mat Sto Slots Evolved 4 | . . . 2 . . . 2 . Power . | . . . . . . . . . Propulsion 1 | . . . 1 . . . . . Utility 3 | . . . 1 . . . 2 . Weapon . | . . . . . . . . . Parts Attached 88 | . 7 8 22 15 . 2 3 31 Power 9 | . . 1 4 1 . . . 3 Engine 9 | . . 1 4 1 . . . 3 Core . | . . . . . . . . . Reactor . | . . . . . . . . . Propulsion 27 | . 2 4 5 7 . 2 . 7 Treads 11 | . . 2 3 3 . . . 3 Leg 1 | . . . . . . . . 1 Wheel 15 | . 2 2 2 4 . 2 . 3 Hover . | . . . . . . . . . Flight . | . . . . . . . . . Utility 24 | . 3 . 6 4 . . 2 9 Device 11 | . 1 . 5 3 . . . 2 Storage 2 | . 1 . . . . . . 1 Processor 1 | . . . . . . . . 1 Hackware . | . . . . . . . . . Protection 10 | . 1 . 1 1 . . 2 5 Artifact . | . . . . . . . . . Weapon 28 | . 2 3 7 3 . . 1 12 Energy Gun 6 | . . . . 1 . . . 5 Energy Cannon 7 | . . 2 2 1 . . . 2 Ballistic Gun 4 | . 1 1 1 . . . 1 . Ballistic Cannon 2 | . . . 2 . . . . . Launcher 4 | . . . 2 1 . . . 1 Special Weapon . | . . . . . . . . . Impact Weapon 3 | . . . . . . . . 3 Slashing Weapon 2 | . 1 . . . . . . 1 Piercing Weapon . | . . . . . . . . . Special Melee Weapon . | . . . . . . . . . Unidentified Prototypes 4 | . . . . . . . . 4 Parts Lost 26 | . . 3 1 8 . . . 14 Power 3 | . . 1 . . . . . 2 Propulsion 12 | . . 1 1 4 . . . 6 Utility 7 | . . 1 . 2 . . . 4 Weapon 4 | . . . . 2 . . . 2 Highest Loss Streak 11 | . . 3 1 7 . . . 11 Average Slot Usage (%) 96 | . 99 85 96 97 100 100 91 94 Engine 11 | . 14 11 11 11 11 11 9 8 Treads 4 | . . 4 11 12 . . . 4 Wheel 23 | . 26 23 20 20 33 33 27 18 Device 9 | . 1 . 15 14 11 11 9 11 Storage 12 | . 15 14 11 11 11 11 9 11 Protection 10 | . 10 2 5 6 11 11 19 17 Energy Gun 4 | . 1 . . 7 11 11 9 7 Energy Cannon 6 | . . 11 11 4 11 11 4 3 Ballistic Gun 8 | . 26 14 4 3 . . 4 1 Ballistic Cannon 1 | . . . 5 3 . . . . Naked Turns . | . . . . . . . . . Heaviest Build 113 | 10 91 92 103 102 100 100 103 113 Greatest Support 60 | 20 26 40 26 60 30 36 36 36 Greatest Overweight (x) 10 | . 3 8 10 9 3 3 2 9 Average Overweight (x) 3 | . 2 3 4 4 3 2 2 2 Largest Inventory Capacity 25 | . 25 25 25 25 25 25 25 25 Average Capacity 24 | . 24 25 25 25 25 25 25 25 Most Carried 25 | . 25 25 25 25 25 25 25 25 Average Carried 23 | . 19 24 24 24 24 25 24 22 Final Capacity 25 | 8 25 25 25 25 25 25 25 25 Final Carried 25 | 6 25 25 25 25 25 25 25 16 Class Distribution -------------------- 60% | Scavenger-Mutant 39% | Mutant Dominant Class ---------------- Mutant | -10/Materials Mutant | -10/Mines Scavenger-Mutant | -9/Materials Scavenger-Mutant | -9/Mines Scavenger-Mutant | -9/Exiles Scavenger-Mutant | -8/Mines Scavenger-Mutant | -8/Materials Scavenger-Mutant | -8/Storage Resources | -11 -10 -10 -9 -9 -9 -8 -8 -8 ----------- Run | Scr Mat Min Mat Min Exi Min Mat Sto Matter Collected 1419 | 200 176 122 420 176 . 10 42 273 Remotely . | . . . . . . . . . Salvage Created 2174 | . 324 125 461 152 . 113 54 945 Parts 134 | . 27 4 35 11 . 5 5 47 Haulers Intercepted 2 | . 1 . 1 . . . . . Recyclers Shooed 1 | . 1 . . . . . . . Parts Field Recycled . | . . . . . . . . . Retrieved Matter . | . . . . . . . . . Parts Self-Destructed . | . . . . . . . . . Prevented . | . . . . . . . . . Kills | -11 -10 -10 -9 -9 -9 -8 -8 -8 ------- Run | Scr Mat Min Mat Min Exi Min Mat Sto Combat Hostiles Destroyed 49 | . 9 1 13 8 . . 1 17 Guns 24 | . 9 1 . 1 . . 1 12 Cannons 10 | . . . 5 2 . . . 3 AOE 12 | . . . 7 5 . . . . Classes Destroyed 14 | . 4 1 5 2 . . . 2 Worker 7 | . . 1 3 . . 1 . 2 Builder 3 | . . . 1 1 . . . 1 Hauler 2 | . 1 . 1 . . . . . Recycler 3 | . 1 1 . . . 1 . . Operator 1 | . . . 1 . . . . . Watcher 2 | . 2 . . . . . . . Swarmer 11 | . 9 . 2 . . . . . Grunt 18 | . . . 7 . . . . 11 Brawler 2 | . . . 1 . . . . 1 Duelist 2 | . . . . . . . . 2 Sentry 6 | . . . 3 . . . 1 2 Demolisher 2 | . . . . 2 . . . . Hunter 1 | . . . . . . . . 1 Assembled 6 | . . . . 6 . . . . Best Kill Streak 10 | . 7 2 9 5 . 1 1 10 Combat Bots Only 9 | . 6 1 7 5 . . 1 9 Max Kills in Single Turn 3 | . 1 1 2 3 . 1 1 1 Gunslinging . | . . . . . . . . . Exploded 3 | . . . 2 3 . . . . Melee . | . . . . . . . . . Uniques/NPCs Destroyed 1 | . . 1 . . . . . . YI-UF0 (-10/Mines) Combat | -11 -10 -10 -9 -9 -9 -8 -8 -8 -------- Run | Scr Mat Min Mat Min Exi Min Mat Sto Damage Taken 4115 | . 194 330 500 829 . . 115 2147 Core 875 | . 34 56 80 154 . . 30 521 Absorbed by Shields . | . . . . . . . . . Core Remaining (%) 68 | 100 . 64 . . . 41 . . Volleys Fired 162 | . 39 9 27 11 . 8 4 64 Largest 2 | . 2 2 2 2 . 1 2 2 Hottest 138 | . 40 80 135 138 . 75 100 137 Shots Fired 271 | . 78 18 46 15 . 8 8 98 Gun 194 | . 78 9 6 6 . 8 8 79 Cannon 65 | . . 9 33 6 . . . 17 Launcher 12 | . . . 7 3 . . . 2 Special . | . . . . . . . . . Kinetic 111 | . 78 9 15 4 . . 4 1 Thermal 141 | . . 9 24 5 . 8 4 91 Explosive 12 | . . . 7 3 . . . 2 Electromagnetic 7 | . . . . 3 . . . 4 Robot Hit Streak 11 | . 5 8 9 5 . 2 6 11 Robot Miss Streak 4 | . 3 3 4 1 . 3 1 2 Penetration Max . | . . . . . . . . . Secondary Targets 4 | . 1 . . . . . . 3 Max Gunslinging Chain 1 | . 1 . . . . . . 1 Shots Hit Robots 171 | . 45 10 25 11 . 4 4 72 Core Hits 101 | . 20 5 23 14 . 2 2 35 Critical Kills 1 | . . . 1 . . . . . Critical Parts Destroyed . | . . . . . . . . . Critical Strikes 7 | . . . 1 . . . . 6 Burn 5 | . . . . . . . . 5 Meltdown 1 | . . . 1 . . . . . Corrupt 1 | . . . . . . . . 1 Melee Attacks 30 | . 3 1 . . . . . 26 Impact 16 | . . . . . . . . 16 Slashing 14 | . 3 1 . . . . . 10 Piercing . | . . . . . . . . . Sneak Attacks 2 | . . 1 . . . . . 1 Combat Hostiles . | . . . . . . . . . Follow-up Attacks . | . . . . . . . . . Damage Inflicted 4541 | . 464 220 1516 432 . 63 83 1763 Guns 2025 | . 464 57 102 96 . 63 83 1160 Cannons 852 | . . 87 386 103 . . . 276 Explosions 1462 | . . . 1028 233 . . . 201 Melee 202 | . . 76 . . . . . 126 Ramming . | . . . . . . . . . Kinetic 807 | . 464 57 193 50 . . 43 . Thermal 1911 | . . 87 295 82 . 63 40 1344 Explosive 1462 | . . . 1028 233 . . . 201 Electromagnetic 159 | . . . . 67 . . . 92 Impact 39 | . . . . . . . . 39 Slashing 163 | . . 76 . . . . . 87 Piercing . | . . . . . . . . . Highest Corruption . | . . . . . . . . . Average Corruption . | . . . . . . . . . Corruption Purged . | . . . . . . . . . Overload Shots . | . . . . . . . . . Overflow Damage 229 | . . 36 143 40 . . . 10 Projectiles 51 | . . . 51 . . . . . Explosions 142 | . . . 92 40 . . . 10 Melee 36 | . . 36 . . . . . . Knockbacks 2 | . . . 1 1 . . . . Impact . | . . . . . . . . . Kinetic 2 | . . . 1 1 . . . . Secondary . | . . . . . . . . . Self-Inflicted Damage 146 | . . . 45 29 . . . 72 Shots 4 | . . . 1 1 . . . 2 Rammed . | . . . . . . . . . Targets Rammed . | . . . . . . . . . Kicked . | . . . . . . . . . Crushed . | . . . . . . . . . Highest Temperature 333 | . 12 39 126 156 . 136 87 333 Average Temperature 58 | . 5 23 42 54 . 59 36 102 Received Heat Transfer 1211 | . . . 174 20 . . 18 999 Effects 2 | . . . . . . . . 2 Energy Bleed 1 | . . . . . . . . 1 Interference 1 | . . . . . . . . 1 Siege Activations . | . . . . . . . . . Robots Corrupted . | . . . . . . . . . Combat Hostiles . | . . . . . . . . . Parts Fried . | . . . . . . . . . Impact Corruptions . | . . . . . . . . . Robots Melted 3 | . . . 1 . . . . 2 Combat Hostiles 3 | . . . 1 . . . . 2 Parts Melted 11 | . . . 2 . . . . 9 Heat Transferred 3848 | . . 185 481 148 . 111 74 2849 Parts Sabotaged . | . . . . . . . . . Parts Stolen . | . . . . . . . . . Parts Stripped . | . . . . . . . . . Power Chain Reactions . | . . . . . . . . . Missiles Intercepted . | . . . . . . . . . Alert | -11 -10 -10 -9 -9 -9 -8 -8 -8 ------- Run | Scr Mat Min Mat Min Exi Min Mat Sto Peak Influence 445 | . 263 10 445 124 . 10 49 336 Initial 124 | . . . 3 124 . . 3 20 Average 120 | . 113 6 261 89 . 1 16 143 Maximum Alert Level 2 | . 1 . 2 . . . . 1 Low Security (%) 72 | . 79 100 19 100 . 100 100 64 Level 1 25 | . 20 . 66 . . . . 35 Level 2 2 | . . . 13 . . . . . Level 3 . | . . . . . . . . . Level 4 . | . . . . . . . . . Level 5 . | . . . . . . . . . High Security . | . . . . . . . . . Max Security . | . . . . . . . . . Squads Dispatched 9 | . . 1 1 . . . . 7 Investigation 2 | . . 1 1 . . . . . Extermination . | . . . . . . . . . Reinforcement 2 | . . . . . . . . 2 Assault 2 | . . . . . . . . 2 Garrison 3 | . . . . . . . . 3 Intercept . | . . . . . . . . . Construction Impeded . | . . . . . . . . . Haulers Reinforced . | . . . . . . . . . Active Scanning Responses . | . . . . . . . . . Cargo Convoy Interrupts . | . . . . . . . . . Stealth | -11 -10 -10 -9 -9 -9 -8 -8 -8 --------- Run | Scr Mat Min Mat Min Exi Min Mat Sto Distress Signals 8 | . 2 . 3 . . . . 3 Communications Jammed . | . . . . . . . . . Distress Signals . | . . . . . . . . . Times Spotted 95 | . 18 1 26 14 . . 1 35 Peak Tracking Total 11 | . 5 1 8 11 . . 1 8 Tactical Retreats 3 | . 1 . . . . . . 2 Traps | -11 -10 -10 -9 -9 -9 -8 -8 -8 ------- Run | Scr Mat Min Mat Min Exi Min Mat Sto Traps Triggered 3 | . . . 1 . . . . 2 Indirectly . | . . . . . . . . . Trap Hack Attempts . | . . . . . . . . . Triggered . | . . . . . . . . . Disarmed . | . . . . . . . . . Reprogrammed . | . . . . . . . . . Reused . | . . . . . . . . . Traps Extracted . | . . . . . . . . . Installed 4 | . . . . 4 . . . . Triggered 1 | . . 1 . . . . . . Machines | -11 -10 -10 -9 -9 -9 -8 -8 -8 ---------- Run | Scr Mat Min Mat Min Exi Min Mat Sto Machines Disabled 6 | . . . 3 . . . . 3 Max in Single Turn 1 | . . . 1 . . . . 1 Machines Sabotaged . | . . . . . . . . . Garrisons Compromised . | . . . . . . . . . Overloaded Fab Kills . | . . . . . . . . . Hacking | -11 -10 -10 -9 -9 -9 -8 -8 -8 --------- Run | Scr Mat Min Mat Min Exi Min Mat Sto Machines Accessed 12 | . 5 1 3 . 1 1 . 1 Terminals 6 | . 3 . 2 . . 1 . . Fabricators . | . . . . . . . . . Repair Stations 1 | . . . . . . . . 1 Recycling Units 2 | . 2 . . . . . . . Scanalyzers 1 | . . . 1 . . . . . Garrison Access . | . . . . . . . . . Total Hacks 31 | . 17 1 6 . 1 3 . 3 Successful 21 | . 13 1 4 . 1 . . 2 Failed 10 | . 4 . 2 . . 3 . 1 Catastrophic 1 | . . . . . . 1 . . Database Lockouts . | . . . . . . . . . Manual 23 | . 14 . 5 . 1 3 . . Terminals 17 | . 9 . 5 . . 3 . . Fabricators . | . . . . . . . . . Repair Stations 3 | . . . . . . . . 3 Recycling Units 8 | . 8 . . . . . . . Scanalyzers 1 | . . . 1 . . . . . Garrison Access . | . . . . . . . . . Terminal Hacks 4 | . 2 1 . . 1 . . . Prototype ID Bank 1 | . 1 . . . . . . . Open Door 1 | . . 1 . . . . . . Zone Layout 1 | . 1 . . . . . . . EX-Prototype ID Bank 1 | . . . . . 1 . . . Fabricator Hacks . | . . . . . . . . . Repair Station Hacks 2 | . . . . . . . . 2 Scan Component 1 | . . . . . . . . 1 Repair 1 | . . . . . . . . 1 Recycling Unit Hacks 2 | . 2 . . . . . . . Retrieve Components 2 | . 2 . . . . . . . Scanalyzer 1 | . . . 1 . . . . . Insert Component 1 | . . . 1 . . . . . Garrison Access Hacks . | . . . . . . . . . Unauthorized Hacks 12 | . 9 . 3 . . . . . Terminals 7 | . 4 . 3 . . . . . Botnet 5 | . 3 . 2 . . . . . Operators 2 | . 1 . 1 . . . . . Fabricators . | . . . . . . . . . Repair Stations . | . . . . . . . . . Recycling Units 5 | . 5 . . . . . . . Monitor 1 | . 1 . . . . . . . Reject 1 | . 1 . . . . . . . Recyclers 1 | . 1 . . . . . . . Mask 2 | . 2 . . . . . . . Scanalyzers . | . . . . . . . . . Garrison Access . | . . . . . . . . . Data Cores Recovered 1 | . . . 1 . . . . . Used 1 | . . . 1 . . . . . Hacking Detections 9 | . 5 . 3 . . 1 . . Full Trace Events . | . . . . . . . . . Feedback Events . | . . . . . . . . . Feedback Blocked . | . . . . . . . . . Robot Schematics Acquired . | . . . . . . . . . Robots Built . | . . . . . . . . . Authchips . | . . . . . . . . . Time . | . . . . . . . . . Total Robot Build Rating . | . . . . . . . . . Part Schematics Acquired . | . . . . . . . . . Parts Built . | . . . . . . . . . Authchips . | . . . . . . . . . Time . | . . . . . . . . . Total Part Build Rating . | . . . . . . . . . Parts Repaired 1 | . . . . . . . . 1 Time 38 | . . . . . . . . 38 Parts Recycled . | . . . . . . . . . Recycled Matter . | . . . . . . . . . Retrieved Matter . | . . . . . . . . . Retrieved Components 4 | . 4 . . . . . . . Parts Scanalyzed . | . . . . . . . . . Part Schematics Acquired . | . . . . . . . . . Parts Damaged . | . . . . . . . . . Bothacking | -11 -10 -10 -9 -9 -9 -8 -8 -8 ------------ Run | Scr Mat Min Mat Min Exi Min Mat Sto Used RIF Installer . | . . . . . . . . . Robots Hacked . | . . . . . . . . . Non-combat . | . . . . . . . . . Combat . | . . . . . . . . . Robot Hacks Applied . | . . . . . . . . . Relay Couplers Released . | . . . . . . . . . Robots Rewired . | . . . . . . . . . Allies Hacked . | . . . . . . . . . Hacks Repelled . | . . . . . . . . . Allies | -11 -10 -10 -9 -9 -9 -8 -8 -8 -------- Run | Scr Mat Min Mat Min Exi Min Mat Sto Total Allies 2 | . . . . . . . . 2 Largest Group 2 | . . . . . . . . 2 Highest-Rated Group 62 | . . . . . . . . 62 Highest-Rated Ally 31 | . . . . . . . . 31 Total Orders . | . . . . . . . . . Ally Attacks 9 | . . . . . . . . 9 Total Damage 170 | . . . . . . . . 170 Kills 1 | . . . . . . . . 1 Allies Corrupted . | . . . . . . . . . Allies Melted . | . . . . . . . . . Intel | -11 -10 -10 -9 -9 -9 -8 -8 -8 ------- Run | Scr Mat Min Mat Min Exi Min Mat Sto Robot Analysis Total . | . . . . . . . . . Derelict Logs Recovered 3 | . . 2 . 1 . . . . Drone Launches . | . . . . . . . . . Drone Recoveries . | . . . . . . . . . Exploration | -11 -10 -10 -9 -9 -9 -8 -8 -8 ------------- Run | Scr Mat Min Mat Min Exi Min Mat Sto Turns Passed 4056 | . 836 378 717 518 297 340 144 826 Spaces Moved 2280 | 1 497 231 371 307 237 260 102 274 Core . | . . . . . . . . . Treads 28 | . . 10 . 18 . . . . Legs 26 | 1 21 . . . . . . 4 Wheels 2226 | . 476 221 371 289 237 260 102 270 Hover . | . . . . . . . . . Flight . | . . . . . . . . . Fastest Speed 116 | 120 120 135 135 125 125 116 116 116 Average Speed 137 | 120 134 143 148 149 125 123 116 138 Slowest Speed 750 | 120 135 320 230 240 125 125 116 750 Overloaded Moves . | . . . . . . . . . Propulsion Burnouts . | . . . . . . . . . Robots Hopped . | . . . . . . . . . Cave-ins Triggered . | . . . . . . . . . Exploration Rate (%) 41 | 2 66 49 34 44 62 59 8 53 Regions Visited 8 Branch Regions 5 Pre-discovered Areas 2 | . . 1 . 1 . . . . Known Exits Taken 1 | . . 1 . . . . . . Unknown Exits Taken 7 | 1 1 . 1 1 1 1 1 . Scrap Searched 3 | . . . . 1 . 2 . . Spaces Dug 25 | . 1 . 8 . . . . 16 Terrain Destroyed 82 | . 1 . 35 18 . . . 28 Melee 17 | . 1 . . . . . . 16 Projectile 8 | . . . 8 . . . . . AOE 57 | . . . 27 18 . . . 12 Terrain Rammed . | . . . . . . . . . Walls Destroyed . | . . . . . . . . . Machines Disabled . | . . . . . . . . . Actions | -11 -10 -10 -9 -9 -9 -8 -8 -8 --------- Run | Scr Mat Min Mat Min Exi Min Mat Sto Total 2899 | . 595 258 495 350 238 271 120 572 Wait 197 | . 3 . 42 . . . 9 143 Move 2272 | . 496 230 370 306 236 259 101 274 Hop . | . . . . . . . . . Pick Up 62 | . 30 3 13 6 1 . 2 7 Fast Attach 27 | . 3 3 4 7 . . 1 9 Attach 24 | . 2 1 3 5 . . 1 12 Detach 9 | . 4 1 . 2 . . . 2 Swap 37 | . 2 4 15 3 . 2 1 10 Drop 59 | . 13 6 21 6 1 2 1 9 Fire 162 | . 39 9 27 11 . 8 4 64 Melee 30 | . 3 1 . . . . . 26 Ram . | . . . . . . . . . Kick . | . . . . . . . . . Crush . | . . . . . . . . . Escape Stasis 16 | . . . . . . . . 16 Rewire . | . . . . . . . . . Trap 4 | . . . . 4 . . . . Miscellaneous . | . . . . . . . . . Route ------- -11/Scrapyard -10/Materials (discovered 2 exits: *Mat / *Min) -10/Mines -9/Materials (discovered 2 exits: *Mat / [*Min]) -9/Mines -9/Exiles -8/Mines -8/Materials -8/Storage History --------- Turn | Location | Event 1 | -11/Scrapyard | Discovered new exit (range 0) 1 | -11/Scrapyard | Entered Materials 316 | -10/Materials | Build established: Mutant 335 | -10/Materials | Discovered new exit (range 13) 476 | -10/Materials | Discovered new exit (range 16) 837 | -10/Materials | Entered Mines 862 | -10/Mines | Identified exit to Materials 938 | -10/Mines | Destroyed YI-UF0 951 | -10/Mines | Lost 3 parts (1p1n1u) 1037 | -10/Mines | Met a Derelict shopkeep closing up shop 1199 | -10/Mines | Excavation squad dispatched 1199 | -10/Mines | A large section of the Mines collapsed 1215 | -10/Mines | Entered Materials 1215 | -9/Materials | Evolved 2 slots: Propulsion x1, Utility x1 1398 | -9/Materials | Destroyed 7 combat bots 1538 | -9/Materials | Build established: Scavenger-Mutant 1663 | -9/Materials | Discovered new exit (range 9) 1911 | -9/Materials | Discovered new exit (range 8) 1932 | -9/Materials | Entered Mines 1979 | -9/Mines | Found a hidden stash of uninstalled traps 2036 | -9/Mines | Assembled infested the area 2116 | -9/Mines | Core integrity fell below 50% 2153 | -9/Mines | Lost 7 parts (4n1u2w) 2393 | -9/Mines | Learned location of Zion (-6) 2445 | -9/Mines | Deemed a non-threat by the Exiles lab entrance 2445 | -9/Mines | Discovered new exit (range 5) 2450 | -9/Mines | Entered Exiles 2482 | -9/Exiles | Met 8R-AWN 2499 | -9/Exiles | Met EX-HEX 2537 | -9/Exiles | Met EX-BIN 2553 | -9/Exiles | Aligned with FarCom system 2554 | -9/Exiles | Given EX-Vault access code 2584 | -9/Exiles | Opened EX-Vault 2591 | -9/Exiles | Found Supersonic Drone Bay 2618 | -9/Exiles | Warned to stay clear of 0b10 Research branches 2653 | -9/Exiles | Met EX-DEC 2732 | -9/Exiles | Discovered new exit (range 14) 2747 | -9/Exiles | Left Exiles lab with Supersonic Drone Bay 2747 | -9/Exiles | Entered Mines 3065 | -8/Mines | Discovered new exit (range 4) 3087 | -8/Mines | Entered Materials 3087 | -8/Materials | Evolved 2 slots: Utility x2 3174 | -8/Materials | Discovered new exit (range 6) 3231 | -8/Materials | Entered Storage 3288 | -8/Storage | Repaired Missile Launcher 3606 | -8/Storage | Met a pair of Derelict thieves 3705 | -8/Storage | Garrison activated, responded to threat 3769 | -8/Storage | Destroyed 9 combat bots 3778 | -8/Storage | Core integrity fell below 50% 3811 | -8/Storage | Core integrity fell below 20% 3847 | -8/Storage | Lost 11 parts (2p4n3u2w) 4057 | -8/Storage | Destroyed by Y-45 Defender with Heavy Assault Rifle Last Messages --------------- 03881_ U-05 Engineer builds a Wall. 03882_ K-01 Serf collects debris. 03885_ U-05 Engineer builds a Wall. 03891_ U-05 Engineer lays Concrete. 03891_ U-05 Engineer builds a Wall. 03906_ K-01 Serf collects debris. 03908_ R-06 Scavenger collects Imp. Heat Sink. 03912_ K-01 Serf collects debris. 03913_ R-06 Scavenger collects Aluminum Leg. 03914_ Sneak attack on U-05 Engineer. 03914_ U-05 Engineer destroyed. 03917_ R-06 Scavenger collects Particle Gun. 04008_ O-16 Technician: "IFF HANDSHAKE FAILED. SECURING TERMINAL." 04012_ ALERT: Hostiles spotted, dispatching reinforcements to Terminal S006. 04020_ U-05 Engineer builds a Wall. 04036_ W-25 Informer sends out distress signal. 04044_ ALERT: Hostiles spotted, dispatching reinforcements to Terminal S011. 04049_ Lgt. Armor Plating destroyed. Map ----- +----------------------------------------------------+ | | | | | | | | | | | | | | | | | | | | | | | | | | | | | | | ??????????????????????????????????????? | | ??????????????????????????????????????? | | ??????????????????????????????????????? | | ??????????????????????????????????????? | | ??????????????????????????????????????? | | ??????????????????????????????????????? | | ???????#########??????????????????????? | | ??????? #??????????????????????? | | ?????# #??????????????????????? | | ?#???# """" #??????????????????????? | | ?# g# Y """"@#??????????????????????? | | ?? gg """" #??????????????????????? | | ?????# """" #??????????????????????? | | ?????# #??????????????????????? | | ?????# #??????????????????????? | | ?# ?######### #######????????????????? | | # #####"##Y# ################## | | # g g | | # H | | # w u | | # ##"####;## #####+#########+## | | ?##????#????##"###/##### # | | ?????????????## """ # # | | ??????????????# "Y" # # | | ????????????### # """" # % | | ????????????#"" * # """ # [ | | ????????????#"T # """" #% % * | | ????????????#"" """ +^ "" !#!% = | | ????????????### """ ===# !=#%! = | | ??????????????# """ == # =*##+## | | ??????????????# == ########### ##" | | ??????????????##""T""###????????##!#### | | ???????????????#"""""#?????????###+#### | | ???????????????#######?????????###[ | | ???????????????????????????????##% "" | +----------------------------------------------------+ Best States ------------- Heat Dissipation 59 Energy Generation 18 Energy Capacity 280 Matter Stores 300 Matter Capacity 300 Sight Range 16 Robot Scan Range 14 Terrain Scan Density 10 Armor Coverage 450 Resistance: EX 25 Evasion (%) 50 Targeting Accuracy 8 Recoil Reduction 3 Item Schematics ----------------- None Robot Schematics ------------------ None Fabricated ------------ Nothing Alien Tech Used ----------------- None Achievements -------------- None Challenges ------------ None Game ------ Seed ScatterFissionCoupler Manual? 0 Play Time 00:43:42 Cumulative 84.1 hours Start 2021.10.29 @ 21:54:27 End 2021.11.04 @ 16:44:02 Sessions 6 Manual Loads 0 Difficulty Rogue Special Mode None Game No. 65 Rogue 65 Adventurer 0 Explorer 0 Win Type - Total 0 Types 0/0/0/0/0/0/0/0/0 Lore% 32 Gallery% 54 Achievement% 39 Wizard Run 0 Options --------- ASCII 0 Keyboard 1 Movement Vi Keybinds 0 Fullscreen 1 Font 18/SmallcapsGlow Map View 76x50 Tactical HUD 1 Map Filters NONE Filters NONE Steam 0 RUN: 11d939ee-e9ac-485d-aa8e-8d118627e6f5